bitfinex-derivatives/quotes_SOLF0:USTF0_20250505
["timestamp","ask_amount","ask_price","bid_price","bid_amount"]
[1746418400497,6.8824,145.29,145.25,6.8841]
[1746418402201,6.8824,145.29,145.26,6.8838]
[1746418402403,6.882,145.3,145.26,6.8838]
[1746418403603,6.8826,145.29,145.26,6.8838]
[1746418405107,6.8826,145.29,145.25,6.8841]
[1746418405299,6.883,145.28,145.25,6.8841]
[1746418408102,24.36,145.32,145.24,24.36]
[1746418408298,5.23536797,145.3,145.24,24.36]
[1746418408504,2.0147,145.29,145.2,28.2607]
[1746418408705,6.8843,145.26,145.22,6.8856]
[1746418408905,26.2686,145.28,145.2,28.2607]
[1746418409208,26.2686,145.28,145.21,6.886]
[1746418409807,6.8847,145.25,145.21,6.886]
[1746418410009,26.2686,145.28,145.2,35.1472]
[1746418410409,26.2686,145.28,145.21,6.886]
[1746418411112,6.8846,145.25,145.21,6.886]
[1746418412002,6.8846,145.25,145.22,6.8856]
[1746418412207,6.884,145.26,145.2,28.2607]
[1746418412401,26.2686,145.28,145.2,28.2607]
[1746418414214,6.8834,145.27,145.24,6.8844]
[1746418416419,33.1516,145.28,145.25,6.8841]
[1746418416614,5.23536797,145.32,145.2,3.9807]
[1746418416815,24.28,145.32,145.21,26.356]
[1746418417517,6.8818,145.31,145.28,6.8825]
[1746418419526,6.882,145.3,145.28,6.8825]
[1746418420820,6.882,145.3,145.27,6.8831]
[1746418421425,6.8816,145.31,145.25,24.28]
[1746418421623,24.28,145.32,145.25,24.28]
[1746418422030,6.882,145.3,145.27,6.8831]
[1746418424829,6.882,145.3,145.28,6.8828]
[1746418425025,6.882,145.3,145.25,24.28]
[1746418425432,6.882,145.3,145.27,6.8831]
[1746418425624,6.882,145.3,145.25,24.28]
[1746418426123,6.882,145.3,145.27,6.8831]
[1746418427634,6.8816,145.31,145.28,6.8828]
[1746418427926,24.28,145.32,145.28,6.8828]
[1746418428827,6.8815,145.31,145.28,6.8828]
[1746418429029,2.0448,145.34,145.26,5.23536797]
[1746418429230,24.22,145.37,145.26,11.50256797]
[1746418429435,6.88,145.35,145.26,11.50256797]
[1746418430435,6.88,145.35,145.32,6.8808]
[1746418430836,6.8792,145.36,145.32,6.8808]
[1746418431236,6.8796,145.35,145.31,6.8813]
[1746418431535,24.22,145.37,145.3,24.22]
[1746418432238,6.8796,145.35,145.31,6.8811]
[1746418432436,24.22,145.37,145.31,6.8811]
[1746418434945,24.22,145.37,145.3,24.22]
[1746418435134,2.1171,145.36,145.3,24.22]
[1746418435938,6.8808,145.33,145.3,24.22]
[1746418436242,2.1171,145.36,145.3,24.22]
[1746418437140,2.1171,145.36,145.32,6.8808]
[1746418437141,8.9964,145.36,145.32,6.8808]
[1746418438842,6.8796,145.35,145.32,6.8808]
[1746418440044,8.9964,145.36,145.32,6.8808]
[1746418442642,6.8796,145.35,145.32,6.8808]
[1746418442845,2.1171,145.36,145.31,6.8813]
[1746418443245,6.8798,145.35,145.31,6.8813]
[1746418444548,6.8798,145.35,145.32,6.8809]
[1746418445150,8.9963,145.36,145.32,6.8809]
[1746418445349,24.2,145.38,145.33,6.8801]
[1746418445745,6.8791,145.36,145.33,6.8801]
[1746418446849,6.8796,145.35,145.31,6.881]
[1746418447054,6.8796,145.35,145.3,24.22]
[1746418447243,24.2,145.38,145.3,24.22]
[1746418447439,6.8793,145.36,145.32,6.8807]
[1746418448550,6.8797,145.35,145.31,6.8812]
[1746418448850,6.8797,145.35,145.3,24.22]
[1746418450346,6.8797,145.35,145.32,6.8809]
[1746418460654,6.8801,145.34,145.31,6.8812]
[1746418461456,6.8798,145.35,145.32,6.8809]
[1746418463558,24.2,145.38,145.3,24.22]
[1746418463856,5.23536797,145.36,145.27,24.12]
[1746418464254,6.8809,145.33,145.29,6.8821]
[1746418464454,5.23536797,145.36,145.29,6.8821]
[1746418464753,2.1433,145.35,145.29,6.8821]
[1746418465062,6.8809,145.33,145.29,6.8821]
[1746418465260,2.1433,145.35,145.29,6.8821]
[1746418465861,6.881,145.33,145.29,6.8821]
[1746418466954,6.881,145.33,145.3,6.8818]
[1746418467859,6.881,145.32,145.29,6.8822]
[1746418468260,24.12,145.34,145.29,6.8822]
[1746418468560,6.8806,145.33,145.29,6.8822]
[1746418472759,6.8806,145.33,145.3,6.8819]
[1746418472960,24.12,145.34,145.27,29.35536797]
[1746418473157,24.12,145.37,145.27,29.35536797]
[1746418473357,24.12,145.37,145.27,31.36716797]
[1746418474154,24.12,145.37,145.3,5.23536797]
[1746418474358,24.12,145.37,145.31,26.2466]
[1746418475762,24.12,145.37,145.34,6.8797]
[1746418476466,24.12,145.37,145.35,6.8794]
[1746418479668,24.12,145.37,145.34,6.8798]
[1746418480966,30.9986,145.37,145.34,6.8798]
[1746418497990,6.8786,145.37,145.34,6.8798]
[1746418499192,6.8785,145.38,145.35,6.8795]
[1746418502088,10.21788352,145.39,145.36,6.879]
[1746418502295,3.34008352,145.39,145.34,3.34008352]
[1746418503094,3.34008352,145.39,145.37,6.8785]
[1746418503295,24.06,145.4,145.32,4.0458]
[1746418503495,5.40668352,145.42,145.36,3.34008352]
[1746418503694,5.40668352,145.42,145.39,6.8776]
[1746418503695,12.28328352,145.42,145.39,6.8776]
[1746418504193,8.9432,145.42,145.39,6.8776]
[1746418504495,8.9432,145.42,145.38,6.878]
[1746418504997,6.8768,145.41,145.37,6.8784]
[1746418505187,24.06,145.43,145.36,3.34008352]
[1746418505391,24.06,145.43,145.38,3.34008352]
[1746418505594,30.936,145.43,145.39,6.8774]
[1746418506494,30.936,145.43,145.4,6.8771]
[1746418507091,30.936,145.43,145.39,6.8775]
[1746418507291,6.8764,145.42,145.39,6.8775]
[1746418507994,6.8759,145.43,145.39,6.8775]
[1746418509297,6.8763,145.42,145.39,6.8775]
[1746418510304,6.8759,145.43,145.39,6.8775]
[1746418510598,27.40008352,145.46,145.39,24.06]
[1746418511002,6.8752,145.45,145.41,6.8767]
[1746418511802,6.8752,145.45,145.42,6.8762]
[1746418513606,34.27448352,145.46,145.42,6.8762]
[1746418514098,27.40008352,145.46,145.42,6.8762]
[1746418515304,6.8748,145.45,145.42,6.8762]
[1746418515701,6.8753,145.44,145.41,6.8766]
[1746418515909,27.40008352,145.46,145.41,6.8766]
[1746418516102,27.40008352,145.46,145.39,27.40008352]
[1746418516403,6.875,145.45,145.41,6.8767]
[1746418517203,6.875,145.45,145.42,6.8762]
[1746418517505,27.40008352,145.46,145.39,27.40008352]
[1746418517806,27.40008352,145.46,145.41,6.8765]
[1746418518106,6.875,145.45,145.39,27.40008352]
[1746418518302,6.875,145.45,145.41,6.8763]
[1746418518702,6.875,145.45,145.39,27.40008352]
[1746418519007,6.875,145.45,145.4,3.34008352]
[1746418519409,6.875,145.45,145.41,6.8763]
[1746418520010,6.875,145.45,145.42,6.8761]
[1746418520605,6.8753,145.44,145.41,6.8766]
[1746418520909,27.40008352,145.46,145.41,6.8766]
[1746418521210,6.8751,145.45,145.41,6.8766]
[1746418521409,6.8751,145.45,145.42,6.8762]
[1746418521708,34.27458352,145.46,145.42,6.8762]
[1746418522209,27.40008352,145.46,145.42,6.8762]
[1746418522810,6.8751,145.45,145.41,6.8765]
[1746418523211,27.40008352,145.46,145.41,6.8765]
[1746418523612,6.8753,145.44,145.41,6.8765]
[1746418528814,3.34008352,145.44,145.39,24.06]
[1746418529311,6.8763,145.42,145.39,30.9374]
[1746418529516,3.34008352,145.44,145.39,24.06]
[1746418530120,6.876,145.43,145.4,6.8769]
[1746418532418,6.8762,145.42,145.39,30.9375]
[1746418533420,6.876,145.43,145.4,6.8771]
[1746418534823,6.876,145.43,145.4,10.21718352]
[1746418537923,6.8754,145.44,145.41,6.8767]
[1746418540528,6.875,145.45,145.42,6.8761]
[1746418541426,6.875,145.45,145.41,6.8765]
[1746418541628,27.40008352,145.46,145.4,3.34008352]
[1746418542126,6.8756,145.44,145.4,10.21678352]
[1746418542327,27.40008352,145.46,145.4,6.8767]
[1746418542529,3.34008352,145.44,145.4,6.8767]
[1746418543028,27.40008352,145.46,145.41,6.8767]
[1746418543327,6.8752,145.45,145.41,6.8767]
[1746418544636,6.8752,145.45,145.42,6.8761]
[1746418544834,34.27468352,145.46,145.41,3.34008352]
[1746418545521,6.8748,145.45,145.41,3.34008352]
[1746418545721,3.34008352,145.46,145.41,3.34008352]
[1746418546132,3.34008352,145.46,145.39,24.06]
[1746418546329,3.34008352,145.46,145.4,3.34008352]
[1746418546734,6.8751,145.45,145.41,6.8763]
[1746418547435,6.8751,145.45,145.42,6.8762]
[1746418556438,10.21468352,145.46,145.4,3.34008352]
[1746418556636,3.34008352,145.48,145.43,6.8756]
[1746418556943,6.8742,145.47,145.43,6.8756]
[1746418557446,26.0974,145.49,145.37,4.185]
[1746418557638,24.4417525,145.57,145.48,3.34008352]
[1746418557841,3.34008352,145.55,145.48,3.34008352]
[1746418558042,6.8714,145.53,145.49,6.8727]
[1746418558233,24.4417525,145.57,145.51,3.34008352]
[1746418558433,27.78183602,145.57,145.51,3.34008352]
[1746418558639,34.65133602,145.57,145.52,6.8712]
[1746418558834,27.78183602,145.57,145.52,6.8712]
[1746418559034,27.78183602,145.57,145.51,3.34008352]
[1746418559244,6.8699,145.56,145.51,10.21198352]
[1746418559546,27.78183602,145.57,145.51,3.34008352]
[1746418559743,6.8701,145.55,145.49,6.8728]
[1746418560144,24.4417525,145.57,145.48,9.16117765]
[1746418560343,6.8706,145.54,145.49,6.8727]
[1746418560944,6.8711,145.53,145.48,16.03437765]
[1746418561448,24.4417525,145.57,145.48,9.16117765]
[1746418561643,24.4417525,145.57,145.48,3.9561]
[1746418561945,94.42308445,145.58,145.48,3.9561]
[1746418561946,29.24507765,145.58,145.48,3.9561]
[1746418562144,29.24507765,145.58,145.48,1.9566]
[1746418562550,29.24507765,145.58,145.47,24.04]
[1746418563149,6.8719,145.52,145.48,6.8731]
[1746418563350,24.04,145.53,145.45,2.0105]
[1746418563549,24.04,145.53,145.45,26.0505]
[1746418563747,6.8728,145.5,145.46,6.8743]
[1746418565959,6.8729,145.49,145.45,32.9251]
[1746418566758,6.8736,145.48,145.45,26.0505]
[1746418566961,2.0865,145.52,145.42,24.04]
[1746418567259,6.8741,145.47,145.43,6.8755]
[1746418568058,6.8744,145.46,145.42,30.916]
[1746418568453,24.04,145.49,145.42,30.916]
[1746418568661,6.8742,145.47,145.42,30.916]
[1746418569656,24.04,145.49,145.42,30.916]
[1746418569863,6.8744,145.46,145.42,30.916]
[1746418571061,6.8744,145.46,145.43,6.8757]
[1746418576971,24.04,145.49,145.42,24.04]
[1746418578172,6.8735,145.48,145.44,6.8748]
[1746418580773,6.8735,145.48,145.45,6.8745]
[1746418580973,30.9131,145.49,145.45,6.8745]
[1746418581973,30.9131,145.49,145.46,6.8743]
[1746418582169,26.1265,145.52,145.42,24.04]
[1746418582375,26.1265,145.52,145.43,2.1558]
[1746418583277,6.8721,145.51,145.48,6.8731]
[1746418583575,26.1265,145.52,145.48,6.8731]
[1746418583775,32.9982,145.52,145.49,6.8728]
[1746418585773,26.1265,145.52,145.49,6.8728]
[1746418585976,26.1265,145.52,145.5,6.8723]
[1746418586275,32.9981,145.52,145.46,24.04]
[1746418586676,32.9981,145.52,145.48,6.8731]
[1746418587176,6.872,145.51,145.48,6.8731]
[1746418590979,6.8725,145.5,145.47,6.8738]
[1746418591175,26.1265,145.52,145.47,6.8738]
[1746418591376,26.1265,145.52,145.46,24.04]
[1746418592182,6.8722,145.51,145.48,6.8734]
[1746418593884,32.9981,145.52,145.49,6.8729]
[1746418595086,32.9981,145.52,145.48,6.8732]
[1746418595690,32.9981,145.52,145.49,6.8729]
[1746418595882,32.9981,145.52,145.46,24.04]
[1746418596189,32.9981,145.52,145.48,6.8731]
[1746418597689,32.9981,145.52,145.49,6.8729]
[1746418598491,24.04,145.52,145.5,6.8723]
[1746418599887,24.4417525,145.64,145.51,27.35269021]
[1746418600190,24.4417525,145.64,145.58,3.32791691]
[1746418600392,31.3077525,145.64,145.59,6.8681]
[1746418600792,31.3077525,145.64,145.58,3.32791691]
[1746418600986,31.3077525,145.64,145.58,10.19651691]
[1746418601188,33.3397525,145.65,145.58,10.19651691]
[1746418601389,60.68766941,145.65,145.58,10.19651691]
[1746418601584,53.82206941,145.65,145.58,3.32791691]
[1746418601779,53.82206941,145.65,145.57,30.889]
[1746418601780,6.8663,145.64,145.57,30.889]
[1746418602192,24.4417525,145.65,145.58,5.19987205]
[1746418602392,24.4417525,145.65,145.58,9.27987205]
[1746418602692,24.4417525,145.65,145.61,6.8669]
[1746418602993,24.4417525,145.65,145.62,24.02]
[1746418603189,24.4417525,145.65,145.6,24.02]
[1746418603389,6.8662,145.64,145.6,24.02]
[1746418603584,24.4417525,145.65,145.6,24.02]
[1746418603793,24.4417525,145.65,145.62,6.8668]
[1746418604797,24.4417525,145.65,145.61,6.8671]
[1746418605285,24.4417525,145.65,145.6,24.02]
[1746418605483,6.8666,145.63,145.6,24.02]
[1746418606789,6.8673,145.61,145.6,24.02]
[1746418607194,24.02,145.66,145.6,24.02]
[1746418608900,363.19987205,145.74,145.6,24.02]
[1746418609096,24.02,145.69,145.6,24.02]
[1746418609596,29.21987205,145.69,145.6,24.02]
[1746418610194,6.8664,145.63,145.6,24.02]
[1746418611198,29.21987205,145.69,145.6,24.02]
[1746418611400,29.21987205,145.69,145.57,24.12]
[1746418611902,29.21987205,145.69,145.58,6.8684]
[1746418613101,5.19987205,145.66,145.57,24.12]
[1746418613401,6.8679,145.6,145.57,24.12]
[1746418613997,28.1661,145.65,145.57,24.12]
[1746418614602,6.8665,145.63,145.57,24.12]
[1746418614899,28.1661,145.65,145.57,24.12]
[1746418615201,6.8662,145.64,145.59,6.8679]
[1746418615393,28.1661,145.65,145.59,6.8679]
[1746418616300,6.8667,145.63,145.59,6.8679]
[1746418617001,6.8668,145.62,145.58,6.8685]
[1746418617202,24.12,145.65,145.57,24.12]
[1746418618204,6.8659,145.64,145.6,6.8673]
[1746418618602,24.12,145.65,145.57,24.12]
[1746418618801,6.8655,145.65,145.61,6.867]
[1746418622705,6.8655,145.65,145.62,6.8668]
[1746418623203,28.1637,145.68,145.61,24.12]
[1746418623807,6.8662,145.64,145.61,24.12]
[1746418625509,6.8663,145.63,145.61,24.12]
[1746418625808,24.12,145.64,145.57,30.9891]
[1746418626107,24.12,145.64,145.57,24.12]
[1746418628206,6.868,145.6,145.57,24.12]
[1746418631307,24.12,145.64,145.57,24.12]
[1746418631606,24.12,145.64,145.54,30.3051]
[1746418631911,6.8679,145.6,145.56,6.8694]
[1746418634314,6.8683,145.59,145.56,6.8694]
[1746418634511,24.12,145.64,145.54,28.3037]
[1746418634711,1.9453,145.63,145.54,28.3037]
[1746418635017,1.9453,145.63,145.55,6.8698]
[1746418635210,5.19987205,145.6,145.54,24.12]
[1746418635416,29.31987205,145.6,145.51,24.12]
[1746418635616,24.12,145.6,145.51,24.12]
[1746418636119,6.8693,145.57,145.53,6.8707]
[1746418637421,6.8696,145.56,145.52,6.8713]
[1746418638823,6.8696,145.56,145.53,6.8709]
[1746418641222,6.8696,145.56,145.51,24.12]
[1746418641223,24.12,145.6,145.51,24.12]
[1746418641524,29.31987205,145.6,145.51,24.12]
[1746418641924,6.8713,145.53,145.51,24.12]
[1746418642120,24.1,145.56,145.49,2.0966]
[1746418642624,6.8715,145.52,145.49,8.9694]
[1746418642818,6.8715,145.52,145.49,2.0966]
[1746418643023,24.1,145.56,145.49,8.9694]
[1746418643222,24.1,145.56,145.49,2.0966]
[1746418643425,24.1,145.56,145.48,568.02]
[1746418643625,26.1752,145.56,145.48,568.02]
[1746418644223,6.8709,145.54,145.5,6.8722]
[1746418644424,26.1752,145.56,145.48,568.02]
[1746418644726,6.8704,145.55,145.51,6.8716]
[1746418646226,6.8704,145.55,145.5,6.8722]
[1746418646526,6.8708,145.54,145.5,6.8722]
[1746418647121,360.0038,145.62,145.48,568.02]
[1746418647426,26.1236,145.61,145.49,2.1147]
[1746418647929,6.8697,145.56,145.52,6.8712]
[1746418648727,6.8694,145.57,145.53,6.8707]
[1746418649025,26.1236,145.61,145.52,24.1]
[1746418649223,26.1236,145.61,145.52,29.29987205]
[1746418651230,6.8687,145.58,145.55,6.8698]
[1746418651933,6.8684,145.59,145.55,6.8698]
[1746418652231,6.8684,145.59,145.56,6.8696]
[1746418652531,6.8687,145.58,145.52,29.29987205]
[1746418653232,6.8687,145.58,145.55,6.8698]
[1746418655032,6.8684,145.59,145.56,6.8696]
[1746418655334,26.1236,145.61,145.52,29.29987205]
[1746418655531,24.1,145.61,145.52,29.29987205]
[1746418655731,6.8678,145.6,145.57,6.8689]
[1746418656029,24.1,145.61,145.56,24.1]
[1746418657234,30.9676,145.61,145.58,6.8686]
[1746418657531,30.9676,145.61,145.56,24.1]
[1746418657532,24.1,145.61,145.56,24.1]
[1746418658334,6.8678,145.6,145.57,6.8688]
[1746418659633,6.8683,145.59,145.57,6.8688]
[1746418659835,24.1,145.61,145.57,6.8688]
[1746418660135,6.868,145.6,145.56,30.9694]
[1746418661435,6.8684,145.59,145.56,30.9694]
[1746418661641,24.1,145.61,145.53,24.1]
[1746418661936,6.8699,145.56,145.53,24.1]
[1746418662127,2.1319,145.6,145.53,24.1]
[1746418662637,6.8699,145.56,145.53,24.1]
[1746418663134,6.8699,145.56,145.53,30.971]
[1746418663333,2.1319,145.6,145.53,24.1]
[1746418663831,6.8699,145.56,145.53,24.1]
[1746418666536,2.1319,145.6,145.5,28.3856]
[1746418666839,6.3265,145.6,145.5,26.2534]
[1746418667329,6.8709,145.54,145.5,33.1256]
[1746418667529,6.8709,145.54,145.5,26.2534]
[1746418667938,6.8703,145.55,145.51,6.8719]
[1746418668436,6.8703,145.55,145.5,26.2534]
[1746418669037,6.8698,145.56,145.52,6.8714]
[1746418670735,28.3298,145.6,145.54,6.8704]
[1746418671338,6.8688,145.58,145.54,6.8704]
[1746418673044,6.8688,145.58,145.55,6.8701]
[1746418673341,26.2319,145.6,145.54,24.08]
[1746418673842,6.8663,145.63,145.54,24.08]
[1746418674030,1.9972,145.66,145.55,2.0306]
[1746418674235,1.9972,145.66,145.58,6.8684]
[1746418674437,1.9972,145.66,145.55,2.0306]
[1746418674736,1.9972,145.66,145.57,5.19987205]
[1746418674934,1.9972,145.66,145.6,6.8674]
[1746418675140,6.866,145.64,145.6,6.8674]
[1746418677141,1.9972,145.66,145.58,24.08]
[1746418677739,6.8673,145.62,145.58,24.08]
[1746418678043,1.9972,145.66,145.58,24.08]
[1746418678442,6.8675,145.61,145.58,24.08]
[1746418679546,6.867,145.62,145.58,24.08]
[1746418680451,6.867,145.62,145.58,30.9487]
[1746418681451,6.8665,145.63,145.59,6.8682]
[1746418681643,1.9972,145.66,145.58,24.08]
[1746418682450,1.9972,145.66,145.58,30.9484]
[1746418682951,6.8668,145.63,145.58,30.9484]
[1746418683249,6.8668,145.63,145.59,6.868]
[1746418683451,1.9972,145.66,145.58,24.08]
[1746418683652,6.8662,145.64,145.6,6.8676]
[1746418683847,1.9972,145.66,145.58,24.08]
[1746418684251,6.866,145.64,145.59,6.8677]
[1746418684956,6.8665,145.63,145.59,6.8677]
[1746418685653,1.9972,145.66,145.58,30.9485]
[1746418685852,1.9972,145.66,145.58,24.08]
[1746418686449,6.8666,145.63,145.59,6.8679]
[1746418687152,6.8666,145.63,145.6,6.8677]
[1746418687651,6.8666,145.63,145.58,24.08]
[1746418687951,6.8666,145.63,145.59,6.8679]
[1746418688852,6.867,145.62,145.58,30.9485]
[1746418690249,6.8674,145.61,145.58,30.9485]
[1746418690446,5.19987205,145.65,145.58,24.08]
[1746418690648,7.17017205,145.65,145.56,2.1186]
[1746418690942,6.868,145.6,145.56,8.9881]
[1746418693556,6.8683,145.59,145.56,8.9881]
[1746418698153,7.17017205,145.65,145.56,2.1186]
[1746418698360,26.0772,145.66,145.56,2.1186]
[1746418698655,6.8667,145.63,145.59,6.8679]
[1746418699260,6.8669,145.62,145.59,6.8679]
[1746418700257,6.8665,145.63,145.59,6.8679]
[1746418700754,6.8665,145.63,145.59,30.9479]
[1746418701059,6.8665,145.63,145.6,6.8677]
[1746418701450,6.8665,145.63,145.59,24.08]
[1746418701758,6.8661,145.64,145.6,6.8675]
[1746418701955,6.8661,145.64,145.59,24.08]
[1746418702654,6.8661,145.64,145.6,6.8676]
[1746418702856,6.8661,145.64,145.59,24.08]
[1746418703553,6.8661,145.64,145.61,6.867]
[1746418703758,6.8656,145.65,145.61,6.867]
[1746418705660,6.8659,145.64,145.61,6.867]
[1746418706665,24.08,145.66,145.59,24.08]
[1746418707161,6.8654,145.65,145.61,6.8672]
[1746418707464,6.8654,145.65,145.59,24.08]
[1746418707760,6.8654,145.65,145.61,6.8671]
[1746418708162,6.8659,145.64,145.61,6.8671]
[1746418708459,24.08,145.66,145.6,6.8674]
[1746418708761,6.8661,145.64,145.6,6.8674]
[1746418710061,6.8656,145.65,145.61,6.8671]
[1746418710461,24.08,145.66,145.61,6.8671]
[1746418710756,6.8645,145.67,145.59,29.27987205]
[1746418711063,24.08,145.72,145.6,2.1249]
[1746418711257,24.08,145.72,145.64,6.8657]
[1746418712156,6.8644,145.67,145.64,6.8657]
[1746418712465,6.8644,145.67,145.63,6.8661]
[1746418713167,6.8642,145.68,145.64,6.8657]
[1746418713564,24.08,145.72,145.64,6.8657]
[1746418715157,6.8645,145.67,145.64,6.8657]
[1746418716167,6.8645,145.67,145.63,6.8662]
[1746418717764,6.865,145.66,145.63,6.8662]
[1746418717959,6.865,145.66,145.62,6.8667]
[1746418720367,6.865,145.66,145.61,1.9498]
[1746418721764,6.8655,145.65,145.63,6.8662]
[1746418721966,6.8655,145.65,145.61,1.9498]
[1746418722562,6.8655,145.65,145.63,6.8663]
[1746418723067,6.8655,145.65,145.62,6.8665]
[1746418724773,6.865,145.66,145.63,6.8663]
[1746418725272,6.8646,145.67,145.64,6.8656]
[1746418728777,30.9242,145.68,145.64,6.8656]
[1746418729778,6.8645,145.67,145.64,6.8656]
[1746418730781,544.1,145.73,145.63,24.06]
[1746418730984,6.8638,145.69,145.65,6.8653]
[1746418731184,24.06,145.72,145.63,24.06]
[1746418731485,6.864,145.68,145.64,6.8654]
[1746418739587,6.8646,145.67,145.64,6.8654]
[1746418739788,6.8646,145.67,145.63,30.9261]
[1746418740494,6.8646,145.67,145.64,6.8658]
[1746418740790,6.8646,145.67,145.63,24.06]
[1746418740985,6.8646,145.67,145.63,30.9259]
[1746418741488,31.38767205,145.72,145.63,24.06]
[1746418741684,31.38767205,145.72,145.6,26.2049]
[1746418742493,6.8659,145.64,145.6,33.0724]
[1746418745196,6.8659,145.64,145.61,6.8672]
[1746418746298,6.8656,145.65,145.61,6.8672]
[1746418746499,24.08,145.68,145.6,26.2049]
[1746418746696,24.08,145.68,145.6,28.258]
[1746418746897,6.865,145.66,145.62,6.8664]
[1746418747105,6.865,145.66,145.6,28.258]
[1746418747402,6.865,145.66,145.62,6.8663]
[1746418748205,6.8654,145.65,145.62,6.8663]
[1746418748602,24.08,145.68,145.63,6.866]
[1746418749107,6.8646,145.67,145.64,6.8658]
[1746418750106,6.8646,145.67,145.63,6.8662]
[1746418750404,30.9443,145.68,145.6,28.258]
[1746418750595,24.08,145.71,145.64,6.8657]
[1746418752407,24.08,145.71,145.62,6.8665]
[1746418752910,6.8652,145.66,145.62,6.8665]
[1746418755511,24.08,145.71,145.6,30.3923]
[1746418755512,6.8655,145.65,145.61,6.8671]
[1746418755806,24.08,145.71,145.61,6.8671]
[1746418756002,6.8654,145.65,145.62,6.8666]
[1746418759310,6.8659,145.64,145.61,6.867]
[1746418759610,26.0497,145.71,145.6,28.258]
[1746418759911,6.8656,145.65,145.61,6.8669]
[1746418760610,6.8656,145.65,145.62,6.8667]
[1746418762610,6.8651,145.66,145.63,6.8663]
[1746418762799,26.0497,145.71,145.6,30.3188]
[1746418763711,6.8641,145.68,145.64,6.8656]
[1746418768014,6.8646,145.67,145.64,6.8656]
[1746418768415,6.8642,145.68,145.64,6.8656]
[1746418769413,6.8637,145.69,145.62,5.19987205]
[1746418770112,6.864,145.68,145.65,6.8651]
[1746418770914,6.8636,145.69,145.66,6.8648]
[1746418771609,6.8636,145.69,145.65,6.8652]
[1746418771809,24.08,145.71,145.65,6.8652]
[1746418772616,6.8638,145.69,145.65,6.8652]
[1746418773414,6.8638,145.69,145.66,6.8649]
[1746418774211,6.8633,145.7,145.67,10.18937633]
[1746418774411,24.08,145.71,145.67,10.18937633]
[1746418774611,24.08,145.71,145.67,3.32507633]
[1746418774811,6.8633,145.7,145.67,3.32507633]
[1746418776517,6.8633,145.7,145.67,10.18947633]
[1746418777519,6.8627,145.71,145.68,6.8639]
[1746418778011,5.28997633,145.73,145.68,6.8639]
[1746418778618,6.8622,145.72,145.69,6.8635]
[1746418779421,8.8267,145.73,145.7,6.863]
[1746418779619,6.8618,145.73,145.7,6.863]
[1746418779818,6.8618,145.73,145.69,3.32507633]
[1746418780417,6.8618,145.73,145.69,10.18837633]
[1746418780615,26.0512,145.76,145.69,3.32507633]
[1746418780819,26.0512,145.76,145.71,3.32507633]
[1746418781215,1.9912,145.76,145.71,10.18737633]
[1746418781516,6.861,145.75,145.71,10.18737633]
[1746418781813,6.861,145.75,145.71,6.8623]
[1746418782016,6.8612,145.74,145.7,6.8628]
[1746418784320,6.8608,145.75,145.71,6.8625]
[1746418785422,6.8608,145.75,145.72,6.862]
[1746418785621,8.8515,145.76,145.72,6.862]
[1746418785824,6.8603,145.76,145.71,24.04]
[1746418786523,6.8603,145.76,145.72,6.8618]
[1746418788422,6.8608,145.75,145.71,30.9024]